Workbook

Sheet Bilgi Girişi
A1: YURİÇİ / YURTDIŞI GEÇİCİ GÖREV YOLLUĞU BİLGİ GİRİŞİ
A2: AİT OLDUĞU YIL / BÜTÇE YILI : | B2: 2020 | L2: 2015
A3: KURUM / OKUL ADI : | B3: MAREŞAL | L3: 2016
A4: BİRİM YETKİLİSİ / OKUL / KURUM MÜDÜRÜ | L4: 2017
A5: ADI SOYADI : | B5: M. Sait ÖZYURT | L5: 2018
A6: UNVANI : | B6: Okul Müdürü | L6: 2019
A7: Düzenleme Tarihi : | B7: 2020-03-23 | L7: 2020
L8: 2021
A9: MERKEZİ YÖNETİM BÜTÇE KANUNU H CETVELİ | C9: 2020 | L9: 2022
A10: a) Ek göstergesi 8000 ve daha yüksek olan kadrolarda bulunanlar (1) : | C10: =HLOOKUP($C$9,Gündelikler!$B$3:$V$8,2,FALSE) -> 56.10 | L10: 2023
A11: b) Ek göstergesi 5800 ( dahil )-8000 ( hariç ) olan kadrolarda bulunanlar (2) : | C11: =HLOOKUP($C$9,Gündelikler!$B$3:$V$8,3,FALSE) -> 52.35 | L11: 2024
A12: c) Ek göstergesi 3000 ( dahil )-5800 ( hariç ) olan kadrolarda bulunanlar : | C12: =HLOOKUP($C$9,Gündelikler!$B$3:$V$8,4,FALSE) -> 49.15 | L12: 2025
A13: d) Aylık / kadro derecesi 1-4 olanlar, : | C13: =HLOOKUP($C$9,Gündelikler!$B$3:$V$8,5,FALSE) -> 43.34 | L13: 2026
A14: e) Aylık / kadro derecesi 5-15 olanlar, : | C14: =HLOOKUP($C$9,Gündelikler!$B$3:$V$8,6,FALSE) -> 42.15 | L14: 2027
L15: 2028
L16: 2029
L17: 2030
L18: 2031
L19: 2032
L20: 2033
L21: 2034
L22: 2035

Sheet Personel Bilgileri
A1: PERSONEL BİLGİLERİ GİRİŞİ | D1: GEÇİCİ GÖREV YOLLUĞU BİLGİLERİ
A2: Adı Soyadı : | B2: MEHMET SAİT | E2: GİDİŞ BİLGİLERİ | F2: DÖNÜŞ BİLGİLERİ
A3: Unvanı : | B3: Öğretmen | D3: Nereden Nereye Gittiği : | E3: Erzurum | F3: Hatay | K3: E K G Ö S T E R G E | U3: Ünvanı | W3: Gündelik (Yevmiye) | AB3: Derece | AC3: Kademe
A4: T.C. Kimlik No : | B4: www.HangiSoru.com | D4: Tarihi : | E4: 05/09/2020 | F4: 11/09/2020 | K4: SIRA | L4: Müdür | M4: Md.Yrd. | N4: Öğret. | O4: Memur (lise) | P4: Memur (Ün.) | Q4: Hizmetli | R4: ErÖğrt | Y4: Mutat | Z4: OTOBÜS
A5: Banka Şube Adı : | D5: Saati : | E5: 08:00 | F5: 14:00 | L5: 1 | M5: 2 | N5: 3 | O5: 4 | P5: 5 | Q5: 6 | R5: 7 | U5: Öğretmen | W5: ='Bilgi Girişi'!C10 -> 56.10 | Y5: Resmi | Z5: MİNİBÜS | AB5: 1 | AC5: 1 | AE5: 0.3333333333
A6: Banka Hesap No (IBAN) : | D6: Yol Gün Sayısı : | E6: 1.333333333 | F6: 1.333333333 | K6: 1 | L6: 3000 | M6: 3000 | N6: 3000 | O6: 1500 | P6: 2200 | Q6: 1500 | R6: 3000 | U6: Memur 1 | W6: ='Bilgi Girişi'!C11 -> 52.35 | Z6: TAKSİ | AB6: 2 | AC6: 2 | AE6: 0.5
A7: Derece : | B7: 5 | D7: Şehiriçi Ulaşım Yeri : | E7: İkamet - Terminal | F7: Görev Yeri - Terminal | K7: 2 | L7: 2200 | M7: 2200 | N7: 2200 | O7: 1100 | P7: 1600 | Q7: 1100 | R7: 2200 | U7: Memur 2 | W7: ='Bilgi Girişi'!C12 -> 49.15 | Z7: AMBULANS | AB7: 3 | AC7: 3 | AE7: 0.6666666667
A8: Kademe : | B8: 1 | D8: Şehiriçi Ulaşım Çeşidi : | E8: Taksi | F8: Otobüs | K8: 3 | L8: 1600 | M8: 1600 | N8: 1600 | O8: 800 | P8: 1100 | Q8: 800 | R8: 1600 | U8: Hizmetli | W8: ='Bilgi Girişi'!C13 -> 43.34 | AB8: 4 | AC8: 4 | AE8: 1
A9: Damga Vergisi (‰) : | B9: 7.59 | D9: Şehiriçi Ulaşım Ücreti : | E9: 15.00 | F9: 10.00 | K9: 4 | L9: 1100 | M9: 1100 | N9: 1100 | O9: 650 | P9: 800 | Q9: 650 | R9: 1100 | W9: ='Bilgi Girişi'!C14 -> 42.15 | AB9: 5 | AC9: 5 | AE9: 1.333333333
A10: Ek Göstergesi : | B10: =IF(B2="","",IF(B2="","",IF(B3="ÖĞRETMEN",INDEX($L$6:$L$18,$B7),0))+IF(B2="","",IF(B3="MEMUR 1",INDEX($O$6:$O$18,$B7),0))+IF(B2="","",IF(B3="MEMUR 2",INDEX($P$6:$P$18,$B7),0))+IF(B2="","",IF(B3="HİZMETLİ",INDEX($Q$6:$Q$18,$B7),0))) -> 900 | D10: Yol Gideri Çeşidi : | E10: Mutat | F10: Mutat | K10: 5 | L10: 900 | M10: 900 | N10: 900 | O10: 0 | P10: 0 | Q10: 0 | R10: 900 | AB10: 6 | AC10: 6 | AE10: 1.5
A11: Gündeliği : | B11: =IF(B2="","",IF(B10="",$W$9,IF(B10<=900,$W$9,IF(B10<=2200,$W$8,IF(B10<=3000,$W$7,IF(B10>=5800,$W$6)))))) -> 42.15 | D11: Yol Gideri Ücreti : | E11: 50.00 | F11: 50.00 | K11: 6 | L11: 800 | M11: 800 | N11: 800 | O11: 0 | P11: 0 | Q11: 0 | R11: 800 | AB11: 7 | AC11: 7 | AE11: 1.666666667
D12: Şehiriçi Ulaşım Yeri : | E12: Terminal - Görev Yeri | F12: Terminal - İkamet | K12: 7 | L12: 500 | M12: 500 | N12: 500 | O12: 0 | P12: 0 | Q12: 0 | R12: 500 | AB12: 8 | AE12: 2
A13: Konaklama Süresi : | B13: 2 | D13: Şehiriçi Ulaşım Çeşidi : | E13: Minibüs | F13: Dolmuş | K13: 8 | L13: 450 | M13: 450 | N13: 450 | O13: 0 | P13: 0 | Q13: 0 | R13: 450 | AB13: 9 | AE13: 2.333333333
A14: Konaklama Ücreti : | B14: 126.45 | D14: Şehiriçi Ulaşım Ücreti : | E14: 10.00 | F14: 5.00 | K14: 9 | L14: 0 | M14: 0 | N14: 0 | O14: 0 | P14: 0 | Q14: 0 | R14: 0 | AB14: 10 | AE14: 2.5
K15: 10 | L15: 0 | M15: 0 | N15: 0 | O15: 0 | P15: 0 | Q15: 0 | R15: 0 | AB15: 11 | AE15: 2.666666667
K16: 11 | L16: 0 | M16: 0 | N16: 0 | O16: 0 | P16: 0 | Q16: 0 | R16: 0 | AB16: 12 | AE16: 3
K17: 12 | L17: 0 | M17: 0 | N17: 0 | O17: 0 | P17: 0 | Q17: 0 | R17: 0 | AB17: 14 | AE17: 3.333333333
K18: 13 | L18: 0 | M18: 0 | N18: 0 | O18: 0 | P18: 0 | Q18: 0 | R18: 0 | AB18: 13 | AE18: 3.5
K19: 14 | L19: 0 | M19: 0 | N19: 0 | O19: 0 | P19: 0 | Q19: 0 | R19: 0 | AB19: 15 | AE19: 3.666666667
K20: 15 | L20: 0 | M20: 0 | N20: 0 | O20: 0 | P20: 0 | Q20: 0 | R20: 0 | AE20: 4
AE21: 4.333333333
AE22: 4.5
AE23: 4.666666667
AE24: 5
AE25: 5.333333333
AE26: 5.5
AE27: 5.666666667
AE28: 6
AE29: 6.333333333
AE30: 6.5
AE31: 6.666666667
AE32: 7
AE33: 7.333333333
AE34: 7.5
AE35: 7.666666667
AE36: 8
AE37: 8.333333333
AE38: 8.5
AE39: 8.666666667
AE40: 9

Sheet Bordro
A1: Adı Soyadı : | C1: ='Personel Bilgileri'!B2 -> MEHMET SAİT | D1: YURTİÇİ / YURTDIŞI GEÇİCİ GÖREV YOLLUĞU BİLDİRİMİ
A2: Ünvanı : | C2: ='Personel Bilgileri'!B3 -> Öğretmen | K2: Dairesi : | L2: ='Bilgi Girişi'!B3 -> MAREŞAL
A3: Kadro / Derece : | C3: =CONCATENATE('Personel Bilgileri'!B7,"/",'Personel Bilgileri'!B8) -> 5/1 | K3: Bütçe Yılı : | L3: ='Bilgi Girişi'!B2 -> 2020
A4: Ek Göstergesi : | C4: ='Personel Bilgileri'!B10 -> 900 | K4: Önceden Avans Almışsa Aldığı Saymanlık ve Tarihi :
A5: Gündeliği : | C5: ='Personel Bilgileri'!B11 -> 42.15
A6: Yolculuk ve Oturma Tarihleri | C6: Nereden Nereye Yolculuk Edildiği Veya Nerede Oturduğu | D6: HAREKET SAATLERİ | F6: GÜNDELİKLER | I6: TAŞIT ve ZORUNLU GİDERLER | K6: Dövizin | M6: Toplam Tutar
D7: Gidiş | E7: Dönüş | F7: Gün Sayısı | G7: Bir Günlüğü | H7: Tutarı | I7: Çeşidi / Mevki | J7: Tutarı | K7: Cinsi | L7: Kuru
A8: Gidiş Tarihi | B8: Dönüş Tarihi | G8: TL / Yabancı Para | H8: TL / Yabancı Para | J8: TL / Yabancı Para | L8: TL | M8: TL
A9: =IF($C$1="","",'Personel Bilgileri'!E4) -> 05/09/2020 | C9: =IF(A9>0,"Yevmiye","") -> Yevmiye | F9: ='Personel Bilgileri'!E6 -> 1.333333333 | G9: =IF('Personel Bilgileri'!E6="","",$C$5) -> 42.15 | H9: =IF(F9>0,(F9*G9),"") -> 56.20 | M9: =IF($C$1="","",SUM(H9:J9)) -> 56.20
A10: =IF($C$1="","",'Personel Bilgileri'!E4) -> 05/09/2020 | C10: ='Personel Bilgileri'!E7 -> İkamet - Terminal | I10: ='Personel Bilgileri'!E8 -> Taksi | J10: ='Personel Bilgileri'!E9 -> 15.00 | M10: 15.00
A11: =IF($C$1="","",'Personel Bilgileri'!E4) -> 05/09/2020 | C11: =IF(C1="","",(CONCATENATE('Personel Bilgileri'!E3," - ",'Personel Bilgileri'!F3,""))) -> Erzurum - Hatay | D11: ='Personel Bilgileri'!E5 -> 08:00 | I11: ='Personel Bilgileri'!E10 -> Mutat | J11: ='Personel Bilgileri'!E11 -> 50.00 | M11: 50.00
C12: ='Personel Bilgileri'!E12 -> Terminal - Görev Yeri | I12: ='Personel Bilgileri'!E13 -> Minibüs | J12: ='Personel Bilgileri'!E14 -> 10.00 | M12: 10.00
A13: =IF($C$1="","",'Personel Bilgileri'!E4) -> 05/09/2020 | B13: =IF($C$1="","",'Personel Bilgileri'!F4) -> 11/09/2020 | C13: =IF('Personel Bilgileri'!B13>1,"Konaklama","") -> Konaklama | F13: =IF('Personel Bilgileri'!B13>1,'Personel Bilgileri'!B13,"") -> 2 | G13: =IF('Personel Bilgileri'!B13>1,$C$5,"") -> 42.15 | H13: ='Personel Bilgileri'!B14 -> 126.45 | M13: 126.45
B14: =IF($C$1="","",'Personel Bilgileri'!F4) -> 11/09/2020 | C14: =IF(A9>0,"Yevmiye","") -> Yevmiye | F14: ='Personel Bilgileri'!F6 -> 1.333333333 | G14: =IF('Personel Bilgileri'!F6="","",$C$5) -> 42.15 | H14: =IF(F14>0,(F14*G14),"") -> 56.20 | M14: 56.20
C15: ='Personel Bilgileri'!F7 -> Görev Yeri - Terminal | I15: ='Personel Bilgileri'!F8 -> Otobüs | J15: ='Personel Bilgileri'!F9 -> 10.00 | M15: 10.00
B16: =IF($C$1="","",'Personel Bilgileri'!F4) -> 11/09/2020 | C16: =IF(C1="","",(CONCATENATE('Personel Bilgileri'!F3," - ",'Personel Bilgileri'!E3,""))) -> Hatay - Erzurum | E16: ='Personel Bilgileri'!F5 -> 14:00 | I16: ='Personel Bilgileri'!F10 -> Mutat | J16: ='Personel Bilgileri'!F11 -> 50.00 | M16: 50.00
B17: =IF($C$1="","",'Personel Bilgileri'!F4) -> 11/09/2020 | C17: ='Personel Bilgileri'!F12 -> Terminal - İkamet | I17: ='Personel Bilgileri'!F13 -> Dolmuş | J17: ='Personel Bilgileri'!F14 -> 5.00 | M17: =IF($C$1="","",SUM(H17:J17)) -> 5.00
M18: =IF($C$1="","",SUM(H18:J18)) -> 0.00
M19: =IF($C$1="","",SUM(H19:J19)) -> 0.00
A20: GENEL TOPLAM | H20: =SUM(H9:H19) -> 238.85 | J20: =SUM(J9:J19) -> 140.00 | M20: =SUM(M9:M19) -> 378.85
A22: =CONCATENATE(" Yukarıda belirtilen tarihler / saatler arasında yapmış olduğu geçici görev yolluğu ile ilgili olarak ",C1," tahakkuk eden ",M20," TL"," gösterir bildirimdir.") -> Yukarıda belirtilen tarihler / saatler arasında yapmış olduğu geçici görev yolluğu ile ilgili olarak MEHMET SAİT tahakkuk eden 378,85 TL gösterir bildirimdir.
L23: ='Bilgi Girişi'!B7 -> 2020-03-23
F25: Birim Yetkilisi | L25: Bildirim Sahibi (İmza)
D26: Adı Soyadı : | F26: ='Bilgi Girişi'!B5 -> M. Sait ÖZYURT | L26: =C1 -> MEHMET SAİT
D27: Ünvanı : | F27: ='Bilgi Girişi'!B6 -> Okul Müdürü | L27: =C2 -> Öğretmen
D28: İmzası : | F28: ..................................

Sheet Gündelikler
A1: MEMURLARIN GEÇİCİ GÖREV YOLLUĞU PERSONEL YEVMİYELERİ (GÜNDELİKLERİ):
A2: MERKEZİ YÖNETİM BÜTÇE KANUNU H CETVELİ | B2: YILLAR
B3: 2015 | C3: 2016 | D3: 2017 | E3: 2018 | F3: 2019 | G3: 2020 | H3: 2021 | I3: 2022 | J3: 2023 | K3: 2024 | L3: 2025 | M3: 2026 | N3: 2027 | O3: 2028 | P3: 2029 | Q3: 2030 | R3: 2031 | S3: 2032 | T3: 2033 | U3: 2034 | V3: 2035
A4: a) Ek göstergesi 8000 ve daha yüksek olan kadrolarda bulunanlar (1) | B4: 43.00 | C4: 45.92 | D4: 48.25 | E4: 51.60 | F4: 51.60 | G4: 56.10
A5: b) Ek göstergesi 5800 ( dahil )-8000 ( hariç ) olan kadrolarda bulunanlar (2) | B5: 40.00 | C5: 42.72 | D5: 45.00 | E5: 48.15 | F5: 48.15 | G5: 52.35
A6: c) Ek göstergesi 3000 ( dahil )-5800 ( hariç ) olan kadrolarda bulunanlar | B6: 37.50 | C6: 40.05 | D6: 42.25 | E6: 45.20 | F6: 45.20 | G6: 49.15
A7: d) Aylık / kadro derecesi 1-4 olanlar, | B7: 33.00 | C7: 35.24 | D7: 37.25 | E7: 39.85 | F7: 39.85 | G7: 43.34
A8: e) Aylık / kadro derecesi 5-15 olanlar, | B8: 32.00 | C8: 34.18 | D8: 36.25 | E8: 38.75 | F8: 38.75 | G8: 42.15
B10: E K G Ö S T E R G E | M10: EK GÖSTERGE
B11: SIRA | C11: Müdür | D11: Md.Yrd. | E11: Öğret. | F11: Memur (lise) | G11: Memur (Ün.) | H11: Hizmetli | I11: ErÖğrt | K11: DERECE | L11: 1 | M11: 3000 | N11: 0 | P11: 2200 | Q11: 1500
C12: 1 | D12: 2 | E12: 3 | F12: 4 | G12: 5 | H12: 6 | I12: 7 | L12: 2 | M12: 2200 | N12: 0 | P12: 1600 | Q12: 1100
B13: 1 | C13: 3000 | D13: 3000 | E13: 3000 | F13: 1500 | G13: 2200 | H13: 1500 | I13: 3000 | L13: 3 | M13: 1600 | N13: 0 | P13: 1500 | Q13: 800
B14: 2 | C14: 2200 | D14: 2200 | E14: 2200 | F14: 1100 | G14: 1600 | H14: 1100 | I14: 2200 | L14: 4 | M14: 1100 | N14: 0 | P14: 1100 | Q14: 650
B15: 3 | C15: 1600 | D15: 1600 | E15: 1600 | F15: 800 | G15: 1100 | H15: 800 | I15: 1600 | L15: 5 | M15: 900 | N15: 0 | P15: 1050 | Q15: 0
B16: 4 | C16: 1100 | D16: 1100 | E16: 1100 | F16: 650 | G16: 800 | H16: 650 | I16: 1100 | L16: 6 | M16: 800 | N16: 0 | P16: 1050 | Q16: 0
B17: 5 | C17: 900 | D17: 900 | E17: 900 | F17: 0 | G17: 0 | H17: 0 | I17: 900 | L17: 7 | M17: 500 | N17: 0 | P17: 1050 | Q17: 0
B18: 6 | C18: 800 | D18: 800 | E18: 800 | F18: 0 | G18: 0 | H18: 0 | I18: 800 | L18: 8 | M18: 450 | N18: 0 | P18: 1050 | Q18: 0
B19: 7 | C19: 500 | D19: 500 | E19: 500 | F19: 0 | G19: 0 | H19: 0 | I19: 500 | L19: 9 | M19: 0 | N19: 0 | P19: 1050 | Q19: 0
B20: 8 | C20: 450 | D20: 450 | E20: 450 | F20: 0 | G20: 0 | H20: 0 | I20: 450 | L20: 10 | M20: 0 | N20: 0 | P20: 1050 | Q20: 0
B21: 9 | C21: 0 | D21: 0 | E21: 0 | F21: 0 | G21: 0 | H21: 0 | I21: 0 | L21: 11 | M21: 0 | N21: 0 | P21: 1050 | Q21: 0
B22: 10 | C22: 0 | D22: 0 | E22: 0 | F22: 0 | G22: 0 | H22: 0 | I22: 0 | L22: 12 | M22: 0 | N22: 0 | P22: 1050 | Q22: 0
B23: 11 | C23: 0 | D23: 0 | E23: 0 | F23: 0 | G23: 0 | H23: 0 | I23: 0 | L23: 13 | M23: 0 | N23: 0 | P23: 1050 | Q23: 0
B24: 12 | C24: 0 | D24: 0 | E24: 0 | F24: 0 | G24: 0 | H24: 0 | I24: 0 | L24: 14 | M24: 0 | N24: 0 | P24: 1050 | Q24: 0
B25: 13 | C25: 0 | D25: 0 | E25: 0 | F25: 0 | G25: 0 | H25: 0 | I25: 0 | L25: 15 | M25: 0 | N25: 0 | P25: 1050 | Q25: 0
B26: 14 | C26: 0 | D26: 0 | E26: 0 | F26: 0 | G26: 0 | H26: 0 | I26: 0
B27: 15 | C27: 0 | D27: 0 | E27: 0 | F27: 0 | G27: 0 | H27: 0 | I27: 0

Sheet Yasal Dayanak
B2: GEÇİCİ GÖREV YOLLUĞU YASAL DAYANAĞI
B4: HARCIRAH KANUNU (1)
B5: Kanun Numarası : 6245
B6: Kabul Tarihi : 10/2/1954
B7: Yayımlandığı R.Gazete : Tarih : 18/2/1954 Sayı : 8637
B8: Yayımlandığı Düstur : Tertip : 3 Cilt : 35 Sayfa : 321
